fUSD/lending_fUSD_20260218
["ID","MTS","AMOUNT","RATE_DAILY","PERIOD"]
[405868471,1771373439192,-500.0,0.00012173,2]
[405868472,1771373439202,-500.0,0.00012173,2]
[405868473,1771373439212,-218.33608313,0.00012173,2]
[405868474,1771373439221,-500.0,0.00012173,2]
[405868475,1771373439231,-500.62727143,0.00012173,2]
[405868476,1771373439241,-500.0,0.00012173,2]
[405868477,1771373439251,-500.0,0.00012173,2]
[405868478,1771373439261,-500.0,0.00012173,2]
[405868479,1771373439271,-200.0,0.00012192,2]
[405868480,1771373439281,-500.0,0.00012192,2]
[405868481,1771373439290,-500.0,0.00012329,2]
[405868482,1771373439300,-1000.0,0.00012347,2]
[405868483,1771373439310,-151.0,0.00012482,4]
[405868484,1771373439320,-151.0,0.00012497,2]
[405868485,1771373439330,-214297.0,0.000125,2]
[405868486,1771373439339,-500.0,0.00012603,2]
[405868487,1771373439349,-1000.0,0.00012721,2]
[405868488,1771373439362,-1002.81524174,0.00012721,2]
[405868489,1771373439372,-571.65229745,0.00012721,2]
[405868490,1771373439381,-228.57891647,0.00012721,2]
[405868491,1771373439391,-1013.94571317,0.00012721,2]
[405868492,1771373439403,-509.22256369,0.00012721,2]
[405868493,1771373439413,-500.0,0.00012721,2]
[405868494,1771373439423,-1000.0,0.00012721,2]
[405868495,1771373439434,-1000.0,0.00012721,2]
[405868496,1771373439444,-1000.0,0.00012721,2]
[405868497,1771373439454,-1000.0,0.00012721,2]
[405868498,1771373439463,-1000.0,0.00012721,2]
[405868499,1771373439473,-928.11420057,0.00012721,2]
[405868500,1771373439483,-1000.0,0.00012721,2]
[405868501,1771373439492,-1000.0,0.00012721,2]
[405868502,1771373439502,-544.40507509,0.00012721,2]
[405868503,1771373439511,-1000.0,0.00012721,2]
[405868504,1771373439520,-1000.0,0.00012721,2]
[405868505,1771373439529,-1000.0,0.00012721,2]
[405868506,1771373439539,-1000.0,0.00012721,2]
[405868507,1771373439548,-1000.0,0.00012721,2]
[405868508,1771373439557,-1000.0,0.00012721,2]
[405868509,1771373439567,-615.3930462,0.00012721,2]
[405868510,1771373439577,-1000.0,0.00012721,2]
[405868511,1771373439586,-1000.0,0.00012721,2]
[405868512,1771373439596,-1071.24633497,0.00012721,2]
[405868514,1771373439606,-1000.0,0.00012721,2]
[405868515,1771373439615,-501.82748142,0.00012721,2]
[405868516,1771373439625,-200.0,0.0001274,2]
[405868517,1771373439634,-500.0,0.0001274,2]
[405868518,1771373439643,-48841.46571891,0.00012809,2]
[405868519,1771373439653,-6058.0,0.00012861,2]
[405868520,1771373439663,-500.0,0.00012877,2]
[405868521,1771373439672,-12649.0,0.00012905,2]
[405868522,1771373439682,-5530.0,0.00013,3]
[405868523,1771373439691,-5869.81792752,0.00013014,2]
[405868524,1771373439701,-500.0,0.00013151,2]
[405868525,1771373439711,-744.95097778,0.00013268,2]
[405868526,1771373439720,-592.40967882,0.00013268,2]
[405868527,1771373439729,-1500.0,0.00013268,2]
[405868528,1771373439739,-1500.0,0.00013268,2]
[405868529,1771373439749,-1500.0,0.00013268,2]
[405868530,1771373439759,-1500.0,0.00013268,2]
[405868531,1771373439768,-1500.0,0.00013268,2]
[405868532,1771373439778,-623.71743587,0.00013268,2]
[405868533,1771373439787,-806.86059886,0.00013268,2]
[405868534,1771373439796,-616.56100589,0.00013268,2]
[405868535,1771373439806,-344.71223806,0.00013268,2]
[405868537,1771373439815,-1500.0,0.00013268,2]
[405868538,1771373439825,-1500.0,0.00013268,2]
[405868539,1771373439834,-1500.0,0.00013268,2]
[405868540,1771373439843,-1500.0,0.00013268,2]
[405868541,1771373439853,-1500.0,0.00013268,2]
[405868542,1771373439862,-1000.0,0.00013268,2]
[405868543,1771373439871,-200.0,0.00013288,2]
[405868544,1771373439880,-500.0,0.00013288,2]
[405868545,1771373439890,-500.0,0.00013425,2]
[405868546,1771373439899,-5530.0,0.000135,5]
[405868547,1771373439909,-48841.46571891,0.00013598,2]
[405868548,1771373439918,-230.75,0.00013623,2]
[405868549,1771373439928,-381.17,0.00013638,2]
[405868550,1771373439937,-500.0,0.00013698,2]
[405868551,1771373439946,-500.0,0.00013698,2]
[405868552,1771373439955,-500.0,0.00013698,2]
[405868553,1771373439964,-500.0,0.00013698,2]
[405868554,1771373439973,-500.0,0.00013698,2]
[405868555,1771373439982,-500.0,0.00013698,2]
[405868556,1771373439992,-500.0,0.00013698,2]
[405868557,1771373440001,-500.0,0.00013698,2]
[405868558,1771373440011,-500.0,0.00013698,2]
[405868559,1771373440020,-500.0,0.00013698,2]
[405868560,1771373440029,-500.0,0.00013698,2]
[405868561,1771373440038,-307.56,0.00013698,2]
[405868562,1771373440047,-500.0,0.00013698,2]
[405868563,1771373440056,-500.0,0.00013698,2]
[405868564,1771373440065,-500.0,0.00013698,2]
[405868565,1771373440075,-505.58518338,0.00013698,2]
[405868566,1771373440084,-500.0,0.00013698,2]
[405868567,1771373440093,-500.0,0.00013698,2]
[405868568,1771373440102,-500.0,0.00013698,2]
[405868569,1771373440111,-500.0,0.00013698,2]
[405868570,1771373440120,-500.0,0.00013698,2]
[405868571,1771373440129,-474.03942024,0.00013698,2]
[405868572,1771373440139,-500.0,0.00013698,2]
[405868573,1771373440147,-500.0,0.00013698,2]
[405868574,1771373440156,-500.0,0.00013698,2]
[405868575,1771373440166,-500.0,0.00013698,2]
[405868576,1771373440175,-500.0,0.00013698,2]
[405868577,1771373440184,-500.0,0.00013698,2]
[405868578,1771373440193,-500.0,0.00013698,2]
[405868579,1771373440202,-500.0,0.00013698,2]
[405868580,1771373440211,-500.0,0.00013698,2]
[405868581,1771373440221,-500.0,0.00013698,2]
[405868582,1771373440229,-500.0,0.00013698,2]
[405868583,1771373440239,-600.82615766,0.00013698,2]
[405868584,1771373440248,-2052.7,0.00013698,2]
[405868585,1771373440256,-2052.7,0.00013698,2]
[405868586,1771373440265,-2052.7,0.00013698,2]
[405868587,1771373440274,-2052.7,0.00013698,2]
[405868588,1771373440283,-2052.7,0.00013698,2]
[405868589,1771373440293,-2052.7,0.00013698,2]
[405868590,1771373440302,-2052.7,0.00013698,2]
[405868591,1771373440311,-2052.7,0.00013698,2]
[405868592,1771373440320,-2052.7,0.00013698,2]
[405868593,1771373440329,-2052.7,0.00013698,2]
[405868594,1771373440339,-2052.7,0.00013698,2]
[405868595,1771373440348,-2052.7,0.00013698,2]
[405868596,1771373440360,-2052.7,0.00013698,2]
[405868597,1771373440369,-2052.7,0.00013698,2]
[405868598,1771373440378,-2052.7,0.00013698,2]
[405868599,1771373440387,-2052.7,0.00013698,2]
[405868600,1771373440398,-2052.7,0.00013698,2]
[405868601,1771373440407,-2052.7,0.00013698,2]
[405868602,1771373440416,-528.4390448,0.00013698,2]
[405868603,1771373440428,-500.0,0.00013698,2]
[405868604,1771373440437,-500.0,0.00013698,2]
[405868605,1771373440446,-500.0,0.00013698,2]
[405868606,1771373440455,-500.0,0.00013698,2]
[405868607,1771373440464,-500.0,0.00013698,2]
[405868608,1771373440473,-500.0,0.00013698,2]
[405868609,1771373440482,-500.0,0.00013698,2]
[405868610,1771373440491,-500.0,0.00013698,2]
[405868611,1771373440500,-586.00467181,0.00013698,2]
[405868612,1771373440509,-500.0,0.00013698,2]
[405868613,1771373440519,-500.0,0.00013698,2]
[405868614,1771373440528,-500.0,0.00013698,2]
[405868615,1771373440537,-500.0,0.00013698,2]
[405868616,1771373440547,-500.0,0.00013698,2]
[405868617,1771373440556,-321.35543779,0.00013698,2]
[405868618,1771373440565,-500.0,0.00013698,2]
[405868619,1771373440574,-500.0,0.00013698,2]
[405868620,1771373440583,-500.0,0.00013698,2]
[405868621,1771373440592,-500.0,0.00013698,2]
[405868622,1771373440601,-500.0,0.00013698,2]
[405868623,1771373440610,-500.0,0.00013698,2]
[405868624,1771373440620,-500.0,0.00013698,2]
[405868625,1771373440630,-500.0,0.00013698,2]
[405868626,1771373440639,-213.96435398,0.00013698,2]
[405868627,1771373440648,-172.09485914,0.00013698,2]
[405868628,1771373440657,-1013.23,0.00013698,2]
[405868629,1771373440667,-1013.23,0.00013698,2]
[405868630,1771373440676,-1013.23,0.00013698,2]
[405868631,1771373440686,-1013.23,0.00013698,2]
[405868632,1771373440695,-1013.23,0.00013698,2]
[405868633,1771373440704,-1013.23,0.00013698,2]
[405868634,1771373440715,-1013.23,0.00013698,2]
[405868635,1771373440724,-1013.23,0.00013698,2]
[405868636,1771373440734,-1013.23,0.00013698,2]
[405868637,1771373440743,-1013.23,0.00013698,2]
[405868638,1771373440753,-1013.23,0.00013698,2]
[405868639,1771373440762,-1013.23,0.00013698,2]
[405868640,1771373440771,-1013.23,0.00013698,2]
[405868641,1771373440780,-1013.23,0.00013698,2]
[405868642,1771373440790,-1013.23,0.00013698,2]
[405868643,1771373440800,-1013.23,0.00013698,2]
[405868644,1771373440810,-649.58,0.00013698,2]
[405868645,1771373440820,-649.58,0.00013698,2]
[405868646,1771373440830,-649.58,0.00013698,2]
[405868647,1771373440839,-649.58,0.00013698,2]
[405868648,1771373440849,-649.58,0.00013698,2]
[405868649,1771373440858,-649.58,0.00013698,2]
[405868650,1771373440867,-649.58,0.00013698,2]
[405868651,1771373441100,-649.58,0.00013698,2]
[405868652,1771373441109,-649.58,0.00013698,2]
[405868653,1771373441119,-649.58,0.00013698,2]
[405868654,1771373441128,-649.58,0.00013698,2]
[405868655,1771373441137,-649.58,0.00013698,2]
[405868656,1771373441146,-649.58,0.00013698,2]
[405868657,1771373441155,-649.58,0.00013698,2]
[405868658,1771373441164,-649.58,0.00013698,2]
[405868659,1771373441174,-649.58,0.00013698,2]
[405868660,1771373441183,-1180.75,0.00013698,2]
[405868661,1771373441192,-1180.75,0.00013698,2]
[405868662,1771373441201,-1180.75,0.00013698,2]
[405868663,1771373441210,-1180.75,0.00013698,2]
[405868664,1771373441219,-1180.75,0.00013698,2]
[405868665,1771373441228,-1180.75,0.00013698,2]
[405868666,1771373441237,-1180.75,0.00013698,2]
[405868667,1771373441246,-1180.75,0.00013698,2]
[405868668,1771373441256,-1180.75,0.00013698,2]
[405868669,1771373441265,-1180.75,0.00013698,2]
[405868670,1771373441274,-1180.75,0.00013698,2]
[405868671,1771373441283,-1180.75,0.00013698,2]
[405868672,1771373441291,-1180.75,0.00013698,2]
[405868673,1771373441300,-1180.75,0.00013698,2]
[405868674,1771373441309,-1180.75,0.00013698,2]
[405868675,1771373441319,-1180.75,0.00013698,2]
[405868676,1771373441328,-500.0,0.00013698,2]
[405868677,1771373441337,-500.0,0.00013698,2]
[405868678,1771373441347,-500.0,0.00013698,2]
[405868679,1771373441359,-500.0,0.00013698,2]
[405868680,1771373441368,-500.0,0.00013698,2]
[405868681,1771373441377,-500.0,0.00013698,2]
[405868682,1771373441386,-500.0,0.00013698,2]
[405868683,1771373441396,-500.0,0.00013698,2]
[405868684,1771373441405,-500.0,0.00013698,2]
[405868685,1771373441414,-500.0,0.00013698,2]
[405868686,1771373441424,-500.0,0.00013698,2]
[405868687,1771373441433,-500.0,0.00013698,2]
[405868688,1771373441442,-500.0,0.00013698,2]
[405868689,1771373441452,-500.0,0.00013698,2]
[405868690,1771373441460,-500.0,0.00013698,2]
[405868691,1771373441469,-500.0,0.00013698,2]
[405868692,1771373441478,-1479.1,0.00013698,2]
[405868693,1771373441487,-1479.1,0.00013698,2]
[405868694,1771373441496,-1479.1,0.00013698,2]
[405868695,1771373441506,-1479.1,0.00013698,2]
[405868696,1771373441515,-1479.1,0.00013698,2]
[405868697,1771373441524,-1479.1,0.00013698,2]
[405868698,1771373441533,-1479.1,0.00013698,2]
[405868699,1771373441542,-1479.1,0.00013698,2]
[405868700,1771373441552,-546.97,0.00013698,2]
[405868701,1771373441561,-1479.1,0.00013698,2]
[405868702,1771373441571,-546.97,0.00013698,2]
[405868703,1771373441580,-1479.1,0.00013698,2]
[405868704,1771373441589,-546.97,0.00013698,2]
[405868705,1771373441599,-1479.1,0.00013698,2]
[405868706,1771373441608,-546.97,0.00013698,2]
[405868707,1771373441618,-1479.1,0.00013698,2]
[405868708,1771373441627,-546.97,0.00013698,2]
[405868709,1771373441637,-546.97,0.00013698,2]
[405868710,1771373441646,-1479.1,0.00013698,2]
[405868711,1771373441655,-546.97,0.00013698,2]
[405868712,1771373441665,-546.97,0.00013698,2]
[405868713,1771373441674,-1479.1,0.00013698,2]
[405868714,1771373441684,-546.97,0.00013698,2]
[405868715,1771373441694,-1479.1,0.00013698,2]
[405868716,1771373441703,-546.97,0.00013698,2]
[405868717,1771373441713,-1479.1,0.00013698,2]
[405868718,1771373441723,-546.97,0.00013698,2]
[405868719,1771373441732,-546.97,0.00013698,2]
[405868720,1771373441742,-546.97,0.00013698,2]
[405868721,1771373441751,-546.97,0.00013698,2]
[405868722,1771373441761,-546.97,0.00013698,2]
[405868723,1771373441770,-546.97,0.00013698,2]
[405868724,1771373441779,-500.0,0.00013698,2]
[405868725,1771373441788,-500.0,0.00013698,2]
[405868726,1771373441798,-500.0,0.00013698,2]
[405868727,1771373441808,-500.0,0.00013698,2]
[405868728,1771373441817,-500.0,0.00013698,2]
[405868729,1771373441826,-500.0,0.00013698,2]
[405868730,1771373441835,-500.0,0.00013698,2]
[405868731,1771373441845,-500.0,0.00013698,2]
[405868732,1771373441854,-500.0,0.00013698,2]
[405868733,1771373441864,-500.0,0.00013698,2]
[405868734,1771373441878,-500.0,0.00013698,2]
[405868735,1771373441887,-500.0,0.00013698,2]
[405868736,1771373441897,-200.92210999,0.00013698,2]
[405868737,1771373441906,-1546.47,0.00013698,2]
[405868738,1771373441918,-1546.47,0.00013698,2]
[405868739,1771373441928,-1546.47,0.00013698,2]
[405868740,1771373441938,-1546.47,0.00013698,2]
[405868741,1771373441948,-1546.47,0.00013698,2]
[405868742,1771373441957,-1546.47,0.00013698,2]
[405868743,1771373441967,-1546.47,0.00013698,2]
[405868744,1771373441977,-1546.47,0.00013698,2]
[405868745,1771373441986,-1546.47,0.00013698,2]
[405868746,1771373441995,-1546.47,0.00013698,2]
[405868747,1771373442004,-1546.47,0.00013698,2]
[405868748,1771373442014,-1546.47,0.00013698,2]
[405868749,1771373442024,-1546.47,0.00013698,2]
[405868750,1771373442034,-1546.47,0.00013698,2]
[405868751,1771373442043,-1546.47,0.00013698,2]
[405868752,1771373442053,-1546.47,0.00013698,2]
[405868753,1771373442062,-516.5,0.00013698,2]
[405868754,1771373442072,-516.5,0.00013698,2]
[405868755,1771373442081,-516.5,0.00013698,2]
[405868756,1771373442091,-516.5,0.00013698,2]
[405868757,1771373442100,-516.5,0.00013698,2]
[405868758,1771373442110,-516.5,0.00013698,2]
[405868759,1771373442119,-516.5,0.00013698,2]
[405868760,1771373442128,-516.5,0.00013698,2]
[405868761,1771373442137,-516.5,0.00013698,2]
[405868762,1771373442147,-516.5,0.00013698,2]
[405868763,1771373442156,-516.5,0.00013698,2]
[405868764,1771373442166,-516.5,0.00013698,2]
[405868765,1771373442175,-516.5,0.00013698,2]
[405868766,1771373442184,-516.5,0.00013698,2]
[405868767,1771373442194,-516.5,0.00013698,2]
[405868768,1771373442203,-516.5,0.00013698,2]
[405868769,1771373442212,-500.0,0.00013698,2]
[405868770,1771373442222,-500.0,0.00013698,2]
[405868771,1771373442232,-500.0,0.00013698,2]
[405868772,1771373442242,-500.0,0.00013698,2]
[405868773,1771373442252,-500.0,0.00013698,2]
[405868774,1771373442261,-494.24526323,0.00013698,2]
[405868775,1771373442270,-500.0,0.00013698,2]
[405868776,1771373442279,-500.0,0.00013698,2]
[405868777,1771373442290,-500.0,0.00013698,2]
[405868778,1771373442300,-191.17661539,0.00013698,2]
[405868779,1771373442309,-500.0,0.00013699,2]
[405868780,1771373442319,-4559.05,0.00013699,2]
[405868781,1771373442328,-9999.99,0.00013699,2]
[405868782,1771373442337,-14381.39,0.00013699,2]
[405868783,1771373442346,-1401.0,0.00013699,2]
[405868784,1771373442359,-501.97,0.00013699,2]
[405868785,1771373442369,-545.12,0.000137,2]
[405868786,1771373442384,-545.12,0.000137,2]
[405868787,1771373442395,-545.12,0.000137,2]
[405868788,1771373442406,-545.12,0.000137,2]
[405868789,1771373442415,-545.12,0.000137,2]
[405868790,1771373442424,-2000.0,0.00013816,2]
[405868791,1771373442436,-2000.0,0.00013816,2]
[405868792,1771373442445,-2000.0,0.00013816,2]
[405868793,1771373442455,-2000.0,0.00013816,2]
[405868794,1771373442464,-503.8182606,0.00013816,2]
[405868795,1771373442474,-2000.0,0.00013816,2]
[405868796,1771373442483,-237.97520785,0.00013816,2]
[405868797,1771373442492,-2000.0,0.00013816,2]
[405868798,1771373442502,-226.6191256,0.00013816,2]
[405868799,1771373442512,-2000.0,0.00013816,2]
[405868800,1771373442521,-200.0,0.00013836,2]
[405868801,1771373442530,-1013.23,0.00013872,2]
[405868802,1771373442540,-649.58,0.00013872,2]
[405868803,1771373442549,-1180.75,0.00013872,2]
[405868804,1771373442559,-500.0,0.00013872,2]
[405868805,1771373442569,-1479.1,0.00013872,2]
[405868806,1771373442578,-546.97,0.00013872,2]
[405868807,1771373442588,-1546.47,0.00013872,2]
[405868808,1771373442597,-516.5,0.00013872,2]
[405868809,1771373442606,-335.00019172,0.00013873,2]
[405868810,1771373442616,-500.0,0.00013873,2]
[405868811,1771373442625,-500.0,0.00013873,2]
[405868812,1771373442635,-500.0,0.00013873,2]
[405868813,1771373442644,-500.0,0.00013873,2]
[405868814,1771373442654,-500.0,0.00013873,2]
[405868815,1771373442663,-500.0,0.00013873,2]
[405868816,1771373442673,-500.0,0.00013873,2]
[405868817,1771373442683,-500.0,0.00013873,2]
[405868818,1771373442692,-500.0,0.00013873,2]
[405868819,1771373442702,-500.0,0.00013873,2]
[405868820,1771373442711,-500.0,0.00013873,2]
[405868821,1771373442721,-500.0,0.00013873,2]
[405868822,1771373442731,-525.66819458,0.00013873,2]
[405868823,1771373442741,-500.0,0.00013873,2]
[405868824,1771373442751,-162.40112722,0.00013873,2]
[405868825,1771373442761,-500.0,0.00013873,2]
[405868826,1771373442771,-161.87499248,0.00013873,2]
[405868827,1771373442780,-505.14943602,0.00013873,2]
[405868828,1771373442789,-561.11210647,0.00013873,2]
[405868829,1771373442800,-500.0,0.00013873,2]
[405868830,1771373442809,-500.0,0.00013873,2]
[405868832,1771373442819,-500.0,0.00013873,2]
[405868834,1771373442829,-161.02829907,0.00013873,2]
[405868837,1771373442838,-436.04334629,0.00013873,2]
[405868840,1771373442848,-514.27467488,0.00013873,2]
[405868843,1771373442858,-500.0,0.00013873,2]
[405868845,1771373442867,-500.0,0.00013873,2]
[405868847,1771373442877,-500.0,0.00013873,2]
[405868848,1771373442886,-569.45122683,0.00013873,2]
[405868849,1771373442896,-500.0,0.00013873,2]
[405868850,1771373442905,-500.0,0.00013873,2]
[405868851,1771373442915,-163.87964352,0.00013873,2]
[405868852,1771373442924,-500.0,0.00013873,2]
[405868853,1771373442933,-500.0,0.00013873,2]
[405868854,1771373442943,-500.0,0.00013873,2]
[405868855,1771373442952,-500.0,0.00013873,2]
[405868856,1771373442961,-500.0,0.00013873,2]
[405868857,1771373442970,-500.0,0.00013873,2]
[405868858,1771373442980,-501.23450591,0.00013873,2]
[405868859,1771373442990,-500.29634492,0.00013873,2]
[405868860,1771373443000,-500.0,0.00013873,2]
[405868861,1771373443009,-161.95965132,0.00013873,2]
[405868862,1771373443019,-500.0,0.00013873,2]
[405868863,1771373443028,-500.0,0.00013873,2]
[405868864,1771373443038,-500.0,0.00013873,2]
[405868865,1771373443048,-550.905089,0.00013873,2]
[405868866,1771373443057,-160.29464371,0.00013873,2]
[405868867,1771373443067,-503.17452108,0.00013873,2]
[405868868,1771373443076,-559.34470409,0.00013873,2]
[405868869,1771373443086,-500.93096914,0.00013873,2]
[405868870,1771373443095,-501.14207764,0.00013873,2]
[405868871,1771373443105,-500.0,0.00013873,2]
[405868872,1771373443114,-597.93872342,0.00013873,2]
[405868873,1771373443124,-500.0,0.00013873,2]
[405868874,1771373443134,-160.44342054,0.00013873,2]
[405868875,1771373443143,-500.0,0.00013873,2]
[405868876,1771373443153,-501.43225284,0.00013873,2]
[405868877,1771373443163,-500.0,0.00013873,2]
[405868878,1771373443172,-500.0,0.00013873,2]
[405868879,1771373443182,-500.0,0.00013873,2]
[405868880,1771373443192,-500.0,0.00013873,2]
[405868881,1771373443202,-500.0,0.00013873,2]
[405868882,1771373443212,-281.0,0.0001397,12]
[405868883,1771373443222,-500.0,0.00013973,2]
[405868884,1771373443231,-35687.35040524,0.00014181,2]
[405868885,1771373443241,-14478.0,0.00014195,2]
[405868886,1771373443250,-500.0,0.00014247,2]
[405868887,1771373443260,-2500.0,0.00014364,2]
[405868888,1771373443269,-2500.0,0.00014364,2]
[405868889,1771373443278,-1464.93718194,0.00014364,2]
[405868890,1771373443288,-691.88472966,0.00014364,2]
[405868891,1771373443297,-1506.4295813,0.00014364,2]
[405868892,1771373443306,-2500.0,0.00014364,2]
[405868893,1771373443315,-2500.0,0.00014364,2]
[405868894,1771373443324,-4559.05,0.00014384,2]
[405868895,1771373443334,-200.0,0.00014384,2]
[405868896,1771373443343,-502.22718587,0.00014421,2]
[405868897,1771373443353,-1000.0,0.00014421,2]
[405868898,1771373443363,-1001.35605949,0.00014421,2]
[405868899,1771373443372,-501.86536618,0.00014421,2]
[405868900,1771373443382,-1000.0,0.00014421,2]
[405868901,1771373443391,-1009.85751715,0.00014421,2]
[405868902,1771373443400,-504.09468333,0.00014421,2]
[405868903,1771373443409,-1000.0,0.00014421,2]
[405868904,1771373443419,-1000.0,0.00014421,2]
[405868905,1771373443428,-1000.0,0.00014421,2]
[405868906,1771373443438,-502.68727614,0.00014421,2]
[405868907,1771373443447,-1000.0,0.00014421,2]
[405868908,1771373443536,-1000.0,0.00014421,2]
[405868909,1771373443545,-1000.0,0.00014421,2]
[405868910,1771373443554,-1000.0,0.00014421,2]
[405868911,1771373443563,-1000.0,0.00014421,2]
[405868912,1771373443572,-1000.0,0.00014421,2]
[405868913,1771373443581,-1000.0,0.00014421,2]
[405868914,1771373443591,-1000.0,0.00014421,2]
[405868915,1771373443600,-1000.0,0.00014421,2]
[405868916,1771373443610,-504.64635869,0.00014421,2]
[405868917,1771373443619,-1000.0,0.00014421,2]
[405868918,1771373443628,-1002.86775924,0.00014421,2]
[405868919,1771373443637,-1000.0,0.00014421,2]
[405868920,1771373443648,-1009.6821238,0.00014421,2]
[405868921,1771373443657,-1000.0,0.00014421,2]
[405868922,1771373443667,-651.60051968,0.00014421,2]
[405868923,1771373443676,-565.44208777,0.00014421,2]
[405868924,1771373443685,-1000.0,0.00014421,2]
[405868925,1771373443694,-1000.0,0.00014421,2]
[405868926,1771373443704,-1000.0,0.00014421,2]
[405868927,1771373443713,-1000.0,0.00014421,2]
[405868928,1771373443723,-1000.0,0.00014421,2]
[405868929,1771373443731,-895.81638304,0.00014421,2]
[405868930,1771373443741,-1000.0,0.00014421,2]
[405868931,1771373443750,-502.80271569,0.00014421,2]
[405868932,1771373443759,-1000.0,0.00014421,2]
[405868933,1771373443768,-500.0,0.00014521,2]
[405868934,1771373443778,-5869.81792752,0.00014643,2]
[405868935,1771373443787,-500.0,0.00014795,2]
[405868936,1771373443796,-176.05451458,0.000149,2]
[405868937,1771373443806,-176.05451457,0.000149,2]
[405868938,1771373443815,-176.05451457,0.000149,2]
[405868939,1771373443824,-13000.0,0.000149,5]
[405868940,1771373443834,-3000.0,0.00014912,2]
[405868941,1771373443843,-1360.79622624,0.00014912,2]
[405868942,1771373443853,-3000.0,0.00014912,2]
[405868943,1771373443862,-2453.91707801,0.00014912,2]
[405868944,1771373443871,-200.0,0.00014932,2]
[405868945,1771373443880,-2052.7,0.00014968,2]
[405868946,1771373443889,-1500.0,0.00014968,2]
[405868947,1771373443898,-1000.0,0.00014968,2]
[405868948,1771373443907,-1500.0,0.00014968,2]
[405868949,1771373443917,-1500.0,0.00014968,2]
[405868950,1771373443926,-395.07222913,0.00014968,2]
[405868951,1771373443936,-1000.0,0.00014968,2]
[405868952,1771373443946,-1500.0,0.00014968,2]
[405868953,1771373443955,-1500.0,0.00014968,2]
[405868954,1771373443964,-715.83370402,0.00014968,2]
[405868955,1771373443973,-501.69367829,0.00014968,2]
[405868956,1771373443983,-1500.0,0.00014968,2]
[405868957,1771373443992,-1500.0,0.00014968,2]
[405868958,1771373444001,-1500.0,0.00014968,2]
[405868959,1771373444011,-1500.0,0.00014968,2]
[405868960,1771373444020,-504.47861685,0.00014968,2]
[405868961,1771373444029,-1500.0,0.00014968,2]
[405868962,1771373444038,-1097.87159044,0.00014968,2]
[405868963,1771373444047,-1500.0,0.00014968,2]
[405868964,1771373444057,-1500.0,0.00014968,2]
[405868965,1771373444066,-1500.0,0.00014968,2]
[405868966,1771373444075,-1501.26419244,0.00014968,2]
[405868967,1771373444085,-1500.0,0.00014968,2]
[405868968,1771373444094,-1500.0,0.00014968,2]
[405868969,1771373444103,-803.51620924,0.00014968,2]
[405868970,1771373444113,-594.05284132,0.00015068,2]
[405868971,1771373444122,-4559.05,0.00015068,2]
[405868972,1771373444131,-3500.0,0.0001546,2]
[405868973,1771373444140,-3500.0,0.0001546,2]
[405868974,1771373444150,-500.0,0.00015516,2]
[405868975,1771373444159,-2000.0,0.00015516,2]
[405868976,1771373444169,-360.43974274,0.00015516,2]
[405868977,1771373444178,-2000.0,0.00015516,2]
[405868978,1771373444187,-386.21895781,0.00015516,2]
[405868979,1771373444197,-1508.47777759,0.00015516,2]
[405868980,1771373444206,-2000.0,0.00015516,2]
[405868981,1771373444215,-2000.0,0.00015516,2]
[405868982,1771373444225,-1120.78233815,0.00015516,2]